Workbook

Sheet Kosten
B2: Projektabrechnung - Erfassung der Kosten
B6: S | C6: aufgelaufene Kosten | I6: =SUM(I9:I1004) -> 20380 | K6: =SUM(K9:K1000) -> 17126.05042
B8: Datum | C8: Rechnungs- Nr. | D8: Projekt- Nr. | E8: Projekt-Bezeichnung | F8: Leistung / Material o.ä. | G8: Lieferant / Gläubiger | H8: Kostenart in BWA/GuV | I8: Brutto EUR | J8: 19 % MwSt | K8: Netto EUR | L8: frei 1 | M8: frei 2 | N8: Summe frei | U8: Kostenarten aus BWA/GuV
B9: 45495 | C9: 2596354 | D9: 4711 | E9: =IF(Kosten[[#This Row],[Projekt- Nr.]]="","",VLOOKUP(Kosten[[#This Row],[Projekt- Nr.]],Projektsummen[[Projekt- Nr.]:[Projekt-Bezeichnung]],2,0)) -> Umgestaltung | F9: Leistung ABC | G9: Fa. Soundso | H9: Fremdleistungen | I9: 1190 | J9: 0.19 | K9: =I9/(1+J9)*1 -> 1000 | U9: ='Plan-Ist-Vgl'!D16 -> Materialeinkauf
B10: 45558 | C10: 123456 | D10: 4713 | E10: =IF(Kosten[[#This Row],[Projekt- Nr.]]="","",VLOOKUP(Kosten[[#This Row],[Projekt- Nr.]],Projektsummen[[Projekt- Nr.]:[Projekt-Bezeichnung]],2,0)) -> Restrukturierung | F10: Leistung XYZ | G10: Fa. Gegenüber | H10: Fremdleistungen | I10: 2000 | J10: 0.19 | K10: =I10/(1+J10)*1 -> 1680.672269 | U10: ='Plan-Ist-Vgl'!D17 -> Handelswareneinkauf
B11: 45581 | C11: 3689245-A | D11: 4714 | E11: =IF(Kosten[[#This Row],[Projekt- Nr.]]="","",VLOOKUP(Kosten[[#This Row],[Projekt- Nr.]],Projektsummen[[Projekt- Nr.]:[Projekt-Bezeichnung]],2,0)) -> Rekultivierung | F11: Neues Material | G11: XYZ GmbH | H11: Materialeinkauf | I11: 4500 | J11: 0.19 | K11: =I11/(1+J11)*1 -> 3781.512605 | U11: ='Plan-Ist-Vgl'!D18 -> Sonst. Material
B12: 45581 | C12: 3689245-D | D12: 4714 | E12: =IF(Kosten[[#This Row],[Projekt- Nr.]]="","",VLOOKUP(Kosten[[#This Row],[Projekt- Nr.]],Projektsummen[[Projekt- Nr.]:[Projekt-Bezeichnung]],2,0)) -> Rekultivierung | F12: Weiteres Material | G12: Zett AG | H12: Sonst. Material | I12: 2500 | J12: 0.19 | K12: =I12/(1+J12)*1 -> 2100.840336 | U12: ='Plan-Ist-Vgl'!D19 -> Fremdleistungen
B13: 45495 | C13: 2596354 | D13: 4711 | E13: =IF(Kosten[[#This Row],[Projekt- Nr.]]="","",VLOOKUP(Kosten[[#This Row],[Projekt- Nr.]],Projektsummen[[Projekt- Nr.]:[Projekt-Bezeichnung]],2,0)) -> Umgestaltung | F13: Leistung ABC | G13: Fa. Soundso | H13: Fremdleistungen | I13: 1190 | J13: 0.19 | K13: =I13/(1+J13)*1 -> 1000 | U13: ='Plan-Ist-Vgl'!D20 -> Transportkosten
B14: 45558 | C14: 123456 | D14: 4713 | E14: =IF(Kosten[[#This Row],[Projekt- Nr.]]="","",VLOOKUP(Kosten[[#This Row],[Projekt- Nr.]],Projektsummen[[Projekt- Nr.]:[Projekt-Bezeichnung]],2,0)) -> Restrukturierung | F14: Leistung XYZ | G14: Fa. Gegenüber | H14: Fremdleistungen | I14: 2000 | J14: 0.19 | K14: 1680.672269 | U14: ='Plan-Ist-Vgl'!D21 -> frei
B15: 45581 | C15: 3689245-c | D15: 4712 | E15: =IF(Kosten[[#This Row],[Projekt- Nr.]]="","",VLOOKUP(Kosten[[#This Row],[Projekt- Nr.]],Projektsummen[[Projekt- Nr.]:[Projekt-Bezeichnung]],2,0)) -> Neugestaltung | F15: Neues Material | G15: XYZ GmbH | H15: Materialeinkauf | I15: 4500 | J15: 0.19 | K15: 3781.512605 | U15: ='Plan-Ist-Vgl'!D32 -> Raumkosten
B16: 45581 | C16: 3689245-F | D16: 4714 | E16: =IF(Kosten[[#This Row],[Projekt- Nr.]]="","",VLOOKUP(Kosten[[#This Row],[Projekt- Nr.]],Projektsummen[[Projekt- Nr.]:[Projekt-Bezeichnung]],2,0)) -> Rekultivierung | F16: Sonderaktion | G16: Zett AG | H16: Besondere Kosten | I16: 2500 | J16: 0.19 | K16: 2100.840336 | U16: ='Plan-Ist-Vgl'!D33 -> Betriebliche Steuern
U17: ='Plan-Ist-Vgl'!D34 -> Versicherungen/Beiträge
U18: ='Plan-Ist-Vgl'!D35 -> Besondere Kosten
U19: ='Plan-Ist-Vgl'!D36 -> Kfz-Kosten (ohne Steuern)
U20: ='Plan-Ist-Vgl'!D37 -> Werbe-/Reisekosten
U21: ='Plan-Ist-Vgl'!D38 -> Kosten der Warenabgabe
U22: ='Plan-Ist-Vgl'!D39 -> Abschreibungen
U23: ='Plan-Ist-Vgl'!D40 -> Reparatur/Instandhaltung
U24: ='Plan-Ist-Vgl'!D41 -> frei
U25: ='Plan-Ist-Vgl'!D42 -> frei
U26: ='Plan-Ist-Vgl'!D43 -> frei
U27: ='Plan-Ist-Vgl'!D44 -> frei
U28: ='Plan-Ist-Vgl'!D45 -> frei
U29: ='Plan-Ist-Vgl'!D46 -> Sonstige Kosten
U30: ='Plan-Ist-Vgl'!D51 -> Zinsaufwand
U31: ='Plan-Ist-Vgl'!D55 -> Zinserträge
P41: Weitere Projekt-Tools finden Sie auf
P42: https://www.ControllerSpielwiese.de

Sheet Zeiten
B2: Projektabrechnung - Arbeitszeiterfassung
B6: S | C6: aufgelaufene Zeiten | G6: =SUM(G9:G1003) -> 49 | I6: =SUM(I9:I1000) -> 982 | J6: =SUM(J9:J1000) -> 36 | K6: =SUM(K9:K1000) -> 1018
B8: Datum | C8: Mitarbeiter | D8: Projekt- Nr. | E8: Projekt-Bezeichnung | F8: Leistung / Material o.ä. | G8: Anzahl Std. | H8: Stundensatz EUR | I8: Arbeitszeit EUR | J8: Spesen EUR | K8: S Personalkosten EUR | L8: frei1 | M8: frei2
B9: 45495 | C9: Mitarbeiter 1 | D9: 4711 | E9: =IF(Zeiten[[#This Row],[Projekt- Nr.]]="","",VLOOKUP(Zeiten[[#This Row],[Projekt- Nr.]],Projektsummen[[Projekt- Nr.]:[Projekt-Bezeichnung]],2,0)) -> Umgestaltung | F9: umgestalten | G9: 5 | H9: 24 | I9: =Zeiten[[#This Row],[Anzahl Std.]]*Zeiten[[#This Row],[Stundensatz EUR]] -> 120 | K9: =Zeiten[[#This Row],[Spesen EUR]]+Zeiten[[#This Row],[Arbeitszeit EUR]] -> 120
B10: 45558 | C10: Mitarbeiter 3 | D10: 4712 | E10: =IF(Zeiten[[#This Row],[Projekt- Nr.]]="","",VLOOKUP(Zeiten[[#This Row],[Projekt- Nr.]],Projektsummen[[Projekt- Nr.]:[Projekt-Bezeichnung]],2,0)) -> Neugestaltung | F10: restrukturieren | G10: 12 | H10: 16 | I10: =Zeiten[[#This Row],[Anzahl Std.]]*Zeiten[[#This Row],[Stundensatz EUR]] -> 192 | J10: 24 | K10: =Zeiten[[#This Row],[Spesen EUR]]+Zeiten[[#This Row],[Arbeitszeit EUR]] -> 216
B11: 45581 | C11: Mitarbeiter 5 | D11: 4714 | E11: =IF(Zeiten[[#This Row],[Projekt- Nr.]]="","",VLOOKUP(Zeiten[[#This Row],[Projekt- Nr.]],Projektsummen[[Projekt- Nr.]:[Projekt-Bezeichnung]],2,0)) -> Rekultivierung | F11: rekultivieren | G11: 10 | H11: 23 | I11: =Zeiten[[#This Row],[Anzahl Std.]]*Zeiten[[#This Row],[Stundensatz EUR]] -> 230 | K11: =Zeiten[[#This Row],[Spesen EUR]]+Zeiten[[#This Row],[Arbeitszeit EUR]] -> 230
B12: 45515 | C12: Mitarbeiter 1 | D12: 4711 | E12: =IF(Zeiten[[#This Row],[Projekt- Nr.]]="","",VLOOKUP(Zeiten[[#This Row],[Projekt- Nr.]],Projektsummen[[Projekt- Nr.]:[Projekt-Bezeichnung]],2,0)) -> Umgestaltung | F12: umgestalten | G12: 4 | H12: 24 | I12: =Zeiten[[#This Row],[Anzahl Std.]]*Zeiten[[#This Row],[Stundensatz EUR]] -> 96 | K12: =Zeiten[[#This Row],[Spesen EUR]]+Zeiten[[#This Row],[Arbeitszeit EUR]] -> 96
B13: 45578 | C13: Mitarbeiter 3 | D13: 4712 | E13: =IF(Zeiten[[#This Row],[Projekt- Nr.]]="","",VLOOKUP(Zeiten[[#This Row],[Projekt- Nr.]],Projektsummen[[Projekt- Nr.]:[Projekt-Bezeichnung]],2,0)) -> Neugestaltung | F13: restrukturieren | G13: 10 | H13: 16 | I13: =Zeiten[[#This Row],[Anzahl Std.]]*Zeiten[[#This Row],[Stundensatz EUR]] -> 160 | J13: 12 | K13: =Zeiten[[#This Row],[Spesen EUR]]+Zeiten[[#This Row],[Arbeitszeit EUR]] -> 172
B14: 45601 | C14: Mitarbeiter 5 | D14: 4714 | E14: =IF(Zeiten[[#This Row],[Projekt- Nr.]]="","",VLOOKUP(Zeiten[[#This Row],[Projekt- Nr.]],Projektsummen[[Projekt- Nr.]:[Projekt-Bezeichnung]],2,0)) -> Rekultivierung | F14: rekultivieren | G14: 8 | H14: 23 | I14: =Zeiten[[#This Row],[Anzahl Std.]]*Zeiten[[#This Row],[Stundensatz EUR]] -> 184 | K14: =Zeiten[[#This Row],[Spesen EUR]]+Zeiten[[#This Row],[Arbeitszeit EUR]] -> 184
O38: Weitere Projekt-Tools finden Sie auf
O39: https://www.ControllerSpielwiese.de

Sheet Projektsummen
B2: Projektabrechnung - Summenübersicht und Neuanlage Projekt
B6: S | C6: aufgelaufene Zeiten | D6: =SUM(Projektsummen[Kosten EUR]) -> 17126.05042 | E6: =SUM(Projektsummen[Zeiten h]) -> 49 | F6: =SUM(Projektsummen[Zeiten EUR]) -> 982 | G6: =SUM(Projektsummen[Spesen EUR]) -> 36 | H6: =SUM(Projektsummen[Personal EUR]) -> 1018 | I6: =SUM(Projektsummen[Summe EUR]) -> 18144.05042
B8: Projekt- Nr. | C8: Projekt-Bezeichnung | D8: Kosten EUR | E8: Zeiten h | F8: Zeiten EUR | G8: Spesen EUR | H8: Personal EUR | I8: Summe EUR | J8: frei 1 | K8: frei 2 | L8: frei 3
B9: 4711 | C9: Umgestaltung | D9: =SUMIF(Kosten[[Projekt- Nr.]:[Netto EUR]],B9,Kosten[Netto EUR]) -> 2000 | E9: =SUMIF(Zeiten[[Projekt- Nr.]:[Arbeitszeit EUR]],B9,Zeiten[Anzahl Std.]) -> 9 | F9: =SUMIF(Zeiten[[Projekt- Nr.]:[Arbeitszeit EUR]],B9,Zeiten[Arbeitszeit EUR]) -> 216 | G9: =SUMIF(Zeiten[[Projekt- Nr.]:[Spesen EUR]],B9,Zeiten[Spesen EUR]) -> 0 | H9: =F9+G9 -> 216 | I9: =D9+H9 -> 2216
B10: 4712 | C10: Neugestaltung | D10: =SUMIF(Kosten[[Projekt- Nr.]:[Netto EUR]],B10,Kosten[Netto EUR]) -> 3781.512605 | E10: =SUMIF(Zeiten[[Projekt- Nr.]:[Arbeitszeit EUR]],B10,Zeiten[Anzahl Std.]) -> 22 | F10: =SUMIF(Zeiten[[Projekt- Nr.]:[Arbeitszeit EUR]],B10,Zeiten[Arbeitszeit EUR]) -> 352 | G10: =SUMIF(Zeiten[[Projekt- Nr.]:[Spesen EUR]],B10,Zeiten[Spesen EUR]) -> 36 | H10: =F10+G10 -> 388 | I10: =D10+H10 -> 4169.512605
B11: 4713 | C11: Restrukturierung | D11: =SUMIF(Kosten[[Projekt- Nr.]:[Netto EUR]],B11,Kosten[Netto EUR]) -> 3361.344538 | E11: =SUMIF(Zeiten[[Projekt- Nr.]:[Arbeitszeit EUR]],B11,Zeiten[Anzahl Std.]) -> 0 | F11: =SUMIF(Zeiten[[Projekt- Nr.]:[Arbeitszeit EUR]],B11,Zeiten[Arbeitszeit EUR]) -> 0 | G11: =SUMIF(Zeiten[[Projekt- Nr.]:[Spesen EUR]],B11,Zeiten[Spesen EUR]) -> 0 | H11: =F11+G11 -> 0 | I11: =D11+H11 -> 3361.344538
B12: 4714 | C12: Rekultivierung | D12: =SUMIF(Kosten[[Projekt- Nr.]:[Netto EUR]],B12,Kosten[Netto EUR]) -> 7983.193277 | E12: =SUMIF(Zeiten[[Projekt- Nr.]:[Arbeitszeit EUR]],B12,Zeiten[Anzahl Std.]) -> 18 | F12: =SUMIF(Zeiten[[Projekt- Nr.]:[Arbeitszeit EUR]],B12,Zeiten[Arbeitszeit EUR]) -> 414 | G12: =SUMIF(Zeiten[[Projekt- Nr.]:[Spesen EUR]],B12,Zeiten[Spesen EUR]) -> 0 | H12: =F12+G12 -> 414 | I12: =D12+H12 -> 8397.193277
N38: Weitere Projekt-Tools finden Sie auf
N39: https://www.ControllerSpielwiese.de

Sheet Projektdetails
B2: Projektabrechnung - Projektdetails
B3: Stand: | C3: =TODAY() -> 45598
B6: S | C6: aller / gefilterter Kosten und Stunden | K6: =SUBTOTAL(9,K9:K5006) -> 17126.05042 | L6: =SUBTOTAL(9,L9:L5006) -> 49 | N6: =SUBTOTAL(9,N9:N5006) -> 982 | O6: =SUBTOTAL(9,O9:O5006) -> 36 | P6: =SUBTOTAL(9,P9:P5006) -> 1018 | Q6: =SUBTOTAL(9,Q9:Q5006) -> 18144.05042
B8: Datum | C8: Mitarbeiter/ Re-Nr. | D8: Projekt- Nr. | E8: Projekt-Bezeichnung | F8: Leistung / Material o.ä. | G8: Lieferant / Gläubiger | H8: Kostenart in BWA/GuV | I8: Kosten brutto EUR | J8: MwSt 19 % | K8: Kosten netto EUR | L8: Anzahl Std. | M8: Stundensatz EUR | N8: Arbeitszeit EUR | O8: Spesen EUR | P8: S Personal- kosten EUR | Q8: S Projekt- kosten EUR
B9: 45495 | C9: 2596354 | D9: 4711 | E9: Umgestaltung | F9: Leistung ABC | G9: Fa. Soundso | H9: Fremdleistungen | I9: 1190 | J9: 0.19 | K9: 1000 | Q9: =K9+P9 -> 1000
B10: 45495 | C10: 2596354 | D10: 4711 | E10: Umgestaltung | F10: Leistung ABC | G10: Fa. Soundso | H10: Fremdleistungen | I10: 1190 | J10: 0.19 | K10: 1000 | Q10: 1000
B11: 45495 | C11: Mitarbeiter 1 | D11: 4711 | E11: Umgestaltung | F11: umgestalten | L11: 5 | M11: 24 | N11: 120 | P11: 120 | Q11: 120
B12: 45515 | C12: Mitarbeiter 1 | D12: 4711 | E12: Umgestaltung | F12: umgestalten | L12: 4 | M12: 24 | N12: 96 | P12: 96 | Q12: 96
B13: 45558 | C13: 123456 | D13: 4713 | E13: Restrukturierung | F13: Leistung XYZ | G13: Fa. Gegenüber | H13: Fremdleistungen | I13: 2000 | J13: 0.19 | K13: 1680.672269 | Q13: 1680.672269
B14: 45558 | C14: 123456 | D14: 4713 | E14: Restrukturierung | F14: Leistung XYZ | G14: Fa. Gegenüber | H14: Fremdleistungen | I14: 2000 | J14: 0.19 | K14: 1680.672269 | Q14: 1680.672269
B15: 45558 | C15: Mitarbeiter 3 | D15: 4712 | E15: Neugestaltung | F15: restrukturieren | L15: 12 | M15: 16 | N15: 192 | O15: 24 | P15: 216 | Q15: 216
B16: 45578 | C16: Mitarbeiter 3 | D16: 4712 | E16: Neugestaltung | F16: restrukturieren | L16: 10 | M16: 16 | N16: 160 | O16: 12 | P16: 172 | Q16: 172
B17: 45581 | C17: 3689245-A | D17: 4714 | E17: Rekultivierung | F17: Neues Material | G17: XYZ GmbH | H17: Materialeinkauf | I17: 4500 | J17: 0.19 | K17: 3781.512605 | Q17: 3781.512605
B18: 45581 | C18: 3689245-D | D18: 4714 | E18: Rekultivierung | F18: Weiteres Material | G18: Zett AG | H18: Sonst. Material | I18: 2500 | J18: 0.19 | K18: 2100.840336 | Q18: 2100.840336
B19: 45581 | C19: 3689245-c | D19: 4712 | E19: Neugestaltung | F19: Neues Material | G19: XYZ GmbH | H19: Materialeinkauf | I19: 4500 | J19: 0.19 | K19: 3781.512605 | Q19: 3781.512605
B20: 45581 | C20: 3689245-F | D20: 4714 | E20: Rekultivierung | F20: Sonderaktion | G20: Zett AG | H20: Besondere Kosten | I20: 2500 | J20: 0.19 | K20: 2100.840336 | Q20: 2100.840336
B21: 45581 | C21: Mitarbeiter 5 | D21: 4714 | E21: Rekultivierung | F21: rekultivieren | L21: 10 | M21: 23 | N21: 230 | P21: 230 | Q21: 230
B22: 45601 | C22: Mitarbeiter 5 | D22: 4714 | E22: Rekultivierung | F22: rekultivieren | L22: 8 | M22: 23 | N22: 184 | P22: 184 | Q22: 184
Q23: 0
Q24: 0
Q25: 0
Q26: 0
Q27: 0
Q28: 0
Q29: 0
Q30: 0
Q31: 0
Q32: 0
Q33: 0
Q34: 0
Q35: 0
Q36: 0
Q37: 0 | S37: Weitere Projekt-Tools finden Sie auf
Q38: 0 | S38: https://www.ControllerSpielwiese.de
Q39: 0
Q40: 0
Q41: 0
Q42: 0
Q43: 0
Q44: 0
Q45: 0
Q46: 0
Q47: 0
Q48: 0
Q49: 0
Q50: 0
Q51: 0
Q52: 0
Q53: 0
Q54: 0
Q55: 0
Q56: 0
Q57: 0
Q58: 0
Q59: 0
Q60: 0
Q61: 0
Q62: 0
Q63: 0
Q64: 0
Q65: 0
Q66: 0
Q67: 0
Q68: 0
Q69: 0
Q70: 0
Q71: 0
Q72: 0
Q73: =K73+P73 -> 0
Q74: 0
Q75: 0
Q76: 0
Q77: 0
Q78: 0
Q79: 0
Q80: 0
Q81: 0
Q82: 0
Q83: 0
Q84: 0
Q85: 0
Q86: 0
Q87: 0
Q88: 0
Q89: 0
Q90: 0
Q91: 0
Q92: 0
Q93: 0
Q94: 0
Q95: 0
Q96: 0
Q97: 0
Q98: 0
Q99: 0
Q100: 0
Q101: 0
Q102: 0
Q103: 0
Q104: 0
Q105: 0
Q106: 0
Q107: 0
Q108: 0
Q109: 0
Q110: 0
Q111: 0
Q112: 0
Q113: 0
Q114: 0
Q115: 0
Q116: 0
Q117: 0
Q118: 0
Q119: 0
Q120: 0
Q121: 0
Q122: 0
Q123: 0
Q124: 0
Q125: 0
Q126: 0
Q127: 0
Q128: 0
Q129: 0
Q130: 0
Q131: 0
Q132: 0
Q133: 0
Q134: 0
Q135: 0
Q136: 0
Q137: =K137+P137 -> 0
Q138: 0
Q139: 0
Q140: 0
Q141: 0
Q142: 0
Q143: 0
Q144: 0
Q145: 0
Q146: 0
Q147: 0
Q148: 0
Q149: 0
Q150: 0
Q151: 0
Q152: 0
Q153: 0
Q154: 0
Q155: 0
Q156: 0
Q157: 0
Q158: 0
Q159: 0
Q160: 0
Q161: 0
Q162: 0
Q163: 0
Q164: 0
Q165: 0
Q166: 0
Q167: 0
Q168: 0
Q169: 0
Q170: 0
Q171: 0
Q172: 0
Q173: 0
Q174: 0
Q175: 0
Q176: 0
Q177: 0
Q178: 0
Q179: 0
Q180: 0
Q181: 0
Q182: 0
Q183: 0
Q184: 0
Q185: 0
Q186: 0
Q187: 0
Q188: 0
Q189: 0
Q190: 0
Q191: 0
Q192: 0
Q193: 0
Q194: 0
Q195: 0
Q196: 0
Q197: 0
Q198: 0
Q199: 0
Q200: 0
Q201: =K201+P201 -> 0
Q202: 0
Q203: 0
Q204: 0
... 4802 more rows

Sheet Plan-Ist-Vgl
C3: Plan-Ist-Vergleich - Gesamte Projektkosten | L3: IST-Kosten | Z3: PLAN-Kosten
C5: Werte in gerundete EUR
D6: 72649 | F6: Projekt-Nr.: | G6: 4712 | L6: Projekt-Nr. | Z6: Projekt-Nr.
D7: alle Werte in EUR | L7: =Z7 -> 4711 | M7: =AA7 -> 4712 | N7: 4713 | O7: 4714 | P7: 4715 | Q7: 4716 | R7: 4717 | S7: 4718 | T7: 4719 | U7: 4720 | V7: Total | Z7: 4711 | AA7: 4712 | AB7: 4713 | AC7: 4714 | AD7: 4715 | AE7: 4716 | AF7: 4717 | AG7: 4718 | AH7: 4719 | AI7: 4720 | AJ7: Total
D8: Bezeichnung der Position | F8: PLAN | G8: IST | H8: Diff. | L8: IST | M8: IST | N8: IST | O8: IST | P8: IST | Q8: IST | R8: IST | S8: IST | T8: IST | U8: IST | V8: IST | Z8: PLAN | AA8: PLAN | AB8: PLAN | AC8: PLAN | AD8: PLAN | AE8: PLAN | AF8: PLAN | AG8: PLAN | AH8: PLAN | AI8: PLAN | AJ8: PLAN
C10: + | D10: Umsatzerlöse aus Projekt | F10: =HLOOKUP($G$6,$Z$7:AI10,X10,0) -> 10000 | G10: =HLOOKUP($G$6,$L$7:U10,X10,0) -> 8000 | H10: =G10-F10 -> -2000 | L10: 5000 | M10: 8000 | V10: =SUM(L10:U10) -> 13000 | X10: 4 | Z10: 5000 | AA10: 10000 | AJ10: =SUM(Z10:AI10) -> 15000
C11: +/- | D11: Bestandsveränderung | F11: =HLOOKUP($G$6,$Z$7:AI11,X11,0) -> 0 | G11: =HLOOKUP($G$6,$L$7:U11,X11,0) -> 0 | H11: =G11-F11 -> 0 | V11: =SUM(L11:U11) -> 0 | X11: 5 | AJ11: =SUM(Z11:AI11) -> 0
C12: + | D12: Akt. Eigenleistungen | F12: =HLOOKUP($G$6,$Z$7:AI12,X12,0) -> 0 | G12: =HLOOKUP($G$6,$L$7:U12,X12,0) -> 0 | H12: 0 | V12: =SUM(L12:U12) -> 0 | X12: 6 | AJ12: =SUM(Z12:AI12) -> 0
X13: 7
C14: = | D14: Gesamtleistung (100%) | F14: =F10++F11+F12 -> 10000 | G14: =G10++G11+G12 -> 8000 | H14: -2000 | L14: =L10++L11+L12 -> 5000 | M14: =M10++M11+M12 -> 8000 | N14: 0 | O14: 0 | P14: 0 | Q14: 0 | R14: 0 | S14: 0 | T14: 0 | U14: 0 | V14: 13000 | X14: 8 | Z14: =Z10++Z11+Z12 -> 5000 | AA14: =AA10++AA11+AA12 -> 10000 | AB14: 0 | AC14: 0 | AD14: 0 | AE14: 0 | AF14: 0 | AG14: 0 | AH14: 0 | AI14: 0 | AJ14: 15000
X15: 9
C16: - | D16: Materialeinkauf | F16: =HLOOKUP($G$6,$Z$7:AI16,X16,0) -> 5000 | G16: =HLOOKUP($G$6,$L$7:U16,X16,0) -> 3781.512605 | H16: =G16-F16 -> -1218.487395 | L16: =SUMIFS(Kosten[Netto EUR],Kosten[Projekt- Nr.],L$7,Kosten[Kostenart in BWA/GuV],$D16) -> 0 | M16: =SUMIFS(Kosten[Netto EUR],Kosten[Projekt- Nr.],M$7,Kosten[Kostenart in BWA/GuV],$D16) -> 3781.512605 | N16: =SUMIFS(Kosten[Netto EUR],Kosten[Projekt- Nr.],N$7,Kosten[Kostenart in BWA/GuV],$D16) -> 0 | O16: =SUMIFS(Kosten[Netto EUR],Kosten[Projekt- Nr.],O$7,Kosten[Kostenart in BWA/GuV],$D16) -> 3781.512605 | P16: =SUMIFS(Kosten[Netto EUR],Kosten[Projekt- Nr.],P$7,Kosten[Kostenart in BWA/GuV],$D16) -> 0 | Q16: =SUMIFS(Kosten[Netto EUR],Kosten[Projekt- Nr.],Q$7,Kosten[Kostenart in BWA/GuV],$D16) -> 0 | R16: =SUMIFS(Kosten[Netto EUR],Kosten[Projekt- Nr.],R$7,Kosten[Kostenart in BWA/GuV],$D16) -> 0 | S16: =SUMIFS(Kosten[Netto EUR],Kosten[Projekt- Nr.],S$7,Kosten[Kostenart in BWA/GuV],$D16) -> 0 | T16: =SUMIFS(Kosten[Netto EUR],Kosten[Projekt- Nr.],T$7,Kosten[Kostenart in BWA/GuV],$D16) -> 0 | U16: =SUMIFS(Kosten[Netto EUR],Kosten[Projekt- Nr.],U$7,Kosten[Kostenart in BWA/GuV],$D16) -> 0 | V16: =SUM(L16:U16) -> 7563.02521 | X16: 10 | Z16: 5000 | AA16: 5000 | AJ16: =SUM(Z16:AI16) -> 10000
C17: - | D17: Handelswareneinkauf | F17: =HLOOKUP($G$6,$Z$7:AI17,X17,0) -> 0 | G17: =HLOOKUP($G$6,$L$7:U17,X17,0) -> 0 | H17: 0 | L17: =SUMIFS(Kosten[Netto EUR],Kosten[Projekt- Nr.],L$7,Kosten[Kostenart in BWA/GuV],$D17) -> 0 | M17: =SUMIFS(Kosten[Netto EUR],Kosten[Projekt- Nr.],M$7,Kosten[Kostenart in BWA/GuV],$D17) -> 0 | N17: =SUMIFS(Kosten[Netto EUR],Kosten[Projekt- Nr.],N$7,Kosten[Kostenart in BWA/GuV],$D17) -> 0 | O17: =SUMIFS(Kosten[Netto EUR],Kosten[Projekt- Nr.],O$7,Kosten[Kostenart in BWA/GuV],$D17) -> 0 | P17: =SUMIFS(Kosten[Netto EUR],Kosten[Projekt- Nr.],P$7,Kosten[Kostenart in BWA/GuV],$D17) -> 0 | Q17: =SUMIFS(Kosten[Netto EUR],Kosten[Projekt- Nr.],Q$7,Kosten[Kostenart in BWA/GuV],$D17) -> 0 | R17: =SUMIFS(Kosten[Netto EUR],Kosten[Projekt- Nr.],R$7,Kosten[Kostenart in BWA/GuV],$D17) -> 0 | S17: =SUMIFS(Kosten[Netto EUR],Kosten[Projekt- Nr.],S$7,Kosten[Kostenart in BWA/GuV],$D17) -> 0 | T17: =SUMIFS(Kosten[Netto EUR],Kosten[Projekt- Nr.],T$7,Kosten[Kostenart in BWA/GuV],$D17) -> 0 | U17: =SUMIFS(Kosten[Netto EUR],Kosten[Projekt- Nr.],U$7,Kosten[Kostenart in BWA/GuV],$D17) -> 0 | V17: 0 | X17: 11 | AJ17: 0
C18: - | D18: Sonst. Material | F18: =HLOOKUP($G$6,$Z$7:AI18,X18,0) -> 0 | G18: =HLOOKUP($G$6,$L$7:U18,X18,0) -> 0 | H18: 0 | L18: =SUMIFS(Kosten[Netto EUR],Kosten[Projekt- Nr.],L$7,Kosten[Kostenart in BWA/GuV],$D18) -> 0 | M18: =SUMIFS(Kosten[Netto EUR],Kosten[Projekt- Nr.],M$7,Kosten[Kostenart in BWA/GuV],$D18) -> 0 | N18: =SUMIFS(Kosten[Netto EUR],Kosten[Projekt- Nr.],N$7,Kosten[Kostenart in BWA/GuV],$D18) -> 0 | O18: =SUMIFS(Kosten[Netto EUR],Kosten[Projekt- Nr.],O$7,Kosten[Kostenart in BWA/GuV],$D18) -> 2100.840336 | P18: =SUMIFS(Kosten[Netto EUR],Kosten[Projekt- Nr.],P$7,Kosten[Kostenart in BWA/GuV],$D18) -> 0 | Q18: =SUMIFS(Kosten[Netto EUR],Kosten[Projekt- Nr.],Q$7,Kosten[Kostenart in BWA/GuV],$D18) -> 0 | R18: =SUMIFS(Kosten[Netto EUR],Kosten[Projekt- Nr.],R$7,Kosten[Kostenart in BWA/GuV],$D18) -> 0 | S18: =SUMIFS(Kosten[Netto EUR],Kosten[Projekt- Nr.],S$7,Kosten[Kostenart in BWA/GuV],$D18) -> 0 | T18: =SUMIFS(Kosten[Netto EUR],Kosten[Projekt- Nr.],T$7,Kosten[Kostenart in BWA/GuV],$D18) -> 0 | U18: =SUMIFS(Kosten[Netto EUR],Kosten[Projekt- Nr.],U$7,Kosten[Kostenart in BWA/GuV],$D18) -> 0 | V18: 2100.840336 | X18: 12 | AJ18: 0
C19: - | D19: Fremdleistungen | F19: =HLOOKUP($G$6,$Z$7:AI19,X19,0) -> 0 | G19: =HLOOKUP($G$6,$L$7:U19,X19,0) -> 0 | H19: 0 | L19: =SUMIFS(Kosten[Netto EUR],Kosten[Projekt- Nr.],L$7,Kosten[Kostenart in BWA/GuV],$D19) -> 2000 | M19: =SUMIFS(Kosten[Netto EUR],Kosten[Projekt- Nr.],M$7,Kosten[Kostenart in BWA/GuV],$D19) -> 0 | N19: =SUMIFS(Kosten[Netto EUR],Kosten[Projekt- Nr.],N$7,Kosten[Kostenart in BWA/GuV],$D19) -> 3361.344538 | O19: =SUMIFS(Kosten[Netto EUR],Kosten[Projekt- Nr.],O$7,Kosten[Kostenart in BWA/GuV],$D19) -> 0 | P19: =SUMIFS(Kosten[Netto EUR],Kosten[Projekt- Nr.],P$7,Kosten[Kostenart in BWA/GuV],$D19) -> 0 | Q19: =SUMIFS(Kosten[Netto EUR],Kosten[Projekt- Nr.],Q$7,Kosten[Kostenart in BWA/GuV],$D19) -> 0 | R19: =SUMIFS(Kosten[Netto EUR],Kosten[Projekt- Nr.],R$7,Kosten[Kostenart in BWA/GuV],$D19) -> 0 | S19: =SUMIFS(Kosten[Netto EUR],Kosten[Projekt- Nr.],S$7,Kosten[Kostenart in BWA/GuV],$D19) -> 0 | T19: =SUMIFS(Kosten[Netto EUR],Kosten[Projekt- Nr.],T$7,Kosten[Kostenart in BWA/GuV],$D19) -> 0 | U19: =SUMIFS(Kosten[Netto EUR],Kosten[Projekt- Nr.],U$7,Kosten[Kostenart in BWA/GuV],$D19) -> 0 | V19: 5361.344538 | X19: 13 | AJ19: 0
C20: - | D20: Transportkosten | F20: =HLOOKUP($G$6,$Z$7:AI20,X20,0) -> 0 | G20: =HLOOKUP($G$6,$L$7:U20,X20,0) -> 0 | H20: 0 | L20: =SUMIFS(Kosten[Netto EUR],Kosten[Projekt- Nr.],L$7,Kosten[Kostenart in BWA/GuV],$D20) -> 0 | M20: =SUMIFS(Kosten[Netto EUR],Kosten[Projekt- Nr.],M$7,Kosten[Kostenart in BWA/GuV],$D20) -> 0 | N20: =SUMIFS(Kosten[Netto EUR],Kosten[Projekt- Nr.],N$7,Kosten[Kostenart in BWA/GuV],$D20) -> 0 | O20: =SUMIFS(Kosten[Netto EUR],Kosten[Projekt- Nr.],O$7,Kosten[Kostenart in BWA/GuV],$D20) -> 0 | P20: =SUMIFS(Kosten[Netto EUR],Kosten[Projekt- Nr.],P$7,Kosten[Kostenart in BWA/GuV],$D20) -> 0 | Q20: =SUMIFS(Kosten[Netto EUR],Kosten[Projekt- Nr.],Q$7,Kosten[Kostenart in BWA/GuV],$D20) -> 0 | R20: =SUMIFS(Kosten[Netto EUR],Kosten[Projekt- Nr.],R$7,Kosten[Kostenart in BWA/GuV],$D20) -> 0 | S20: =SUMIFS(Kosten[Netto EUR],Kosten[Projekt- Nr.],S$7,Kosten[Kostenart in BWA/GuV],$D20) -> 0 | T20: =SUMIFS(Kosten[Netto EUR],Kosten[Projekt- Nr.],T$7,Kosten[Kostenart in BWA/GuV],$D20) -> 0 | U20: =SUMIFS(Kosten[Netto EUR],Kosten[Projekt- Nr.],U$7,Kosten[Kostenart in BWA/GuV],$D20) -> 0 | V20: 0 | X20: 14 | AJ20: 0
C21: - | D21: frei | F21: =HLOOKUP($G$6,$Z$7:AI21,X21,0) -> 0 | G21: =HLOOKUP($G$6,$L$7:U21,X21,0) -> 0 | H21: 0 | L21: =SUMIFS(Kosten[Netto EUR],Kosten[Projekt- Nr.],L$7,Kosten[Kostenart in BWA/GuV],$D21) -> 0 | M21: =SUMIFS(Kosten[Netto EUR],Kosten[Projekt- Nr.],M$7,Kosten[Kostenart in BWA/GuV],$D21) -> 0 | N21: =SUMIFS(Kosten[Netto EUR],Kosten[Projekt- Nr.],N$7,Kosten[Kostenart in BWA/GuV],$D21) -> 0 | O21: =SUMIFS(Kosten[Netto EUR],Kosten[Projekt- Nr.],O$7,Kosten[Kostenart in BWA/GuV],$D21) -> 0 | P21: =SUMIFS(Kosten[Netto EUR],Kosten[Projekt- Nr.],P$7,Kosten[Kostenart in BWA/GuV],$D21) -> 0 | Q21: =SUMIFS(Kosten[Netto EUR],Kosten[Projekt- Nr.],Q$7,Kosten[Kostenart in BWA/GuV],$D21) -> 0 | R21: =SUMIFS(Kosten[Netto EUR],Kosten[Projekt- Nr.],R$7,Kosten[Kostenart in BWA/GuV],$D21) -> 0 | S21: =SUMIFS(Kosten[Netto EUR],Kosten[Projekt- Nr.],S$7,Kosten[Kostenart in BWA/GuV],$D21) -> 0 | T21: =SUMIFS(Kosten[Netto EUR],Kosten[Projekt- Nr.],T$7,Kosten[Kostenart in BWA/GuV],$D21) -> 0 | U21: =SUMIFS(Kosten[Netto EUR],Kosten[Projekt- Nr.],U$7,Kosten[Kostenart in BWA/GuV],$D21) -> 0 | V21: 0 | X21: 15 | AJ21: 0
C22: = | D22: S Material-/Wareneinkauf | F22: =SUM(F16:F21) -> 5000 | G22: =SUM(G16:G21) -> 3781.512605 | H22: -1218.487395 | L22: =SUM(L16:L21) -> 2000 | M22: =SUM(M16:M21) -> 3781.512605 | N22: 3361.344538 | O22: 5882.352941 | P22: 0 | Q22: 0 | R22: 0 | S22: 0 | T22: 0 | U22: 0 | V22: 15025.21008 | X22: 16 | Z22: =SUM(Z16:Z21) -> 5000 | AA22: =SUM(AA16:AA21) -> 5000 | AB22: 0 | AC22: 0 | AD22: 0 | AE22: 0 | AF22: 0 | AG22: 0 | AH22: 0 | AI22: 0 | AJ22: 10000
X23: 17
C24: = | D24: Rohertrag | F24: =F14-F22 -> 5000 | G24: =G14-G22 -> 4218.487395 | H24: -781.512605 | L24: =L14-L22 -> 3000 | M24: =M14-M22 -> 4218.487395 | N24: -3361.344538 | O24: -5882.352941 | P24: 0 | Q24: 0 | R24: 0 | S24: 0 | T24: 0 | U24: 0 | V24: -2025.210084 | X24: 18 | Z24: =Z14-Z22 -> 0 | AA24: =AA14-AA22 -> 5000 | AB24: 0 | AC24: 0 | AD24: 0 | AE24: 0 | AF24: 0 | AG24: 0 | AH24: 0 | AI24: 0 | AJ24: 5000
X25: 19
C26: + | D26: So. betriebliche Erlöse | F26: =HLOOKUP($G$6,$Z$7:AI26,X26,0) -> 0 | G26: =HLOOKUP($G$6,$L$7:U26,X26,0) -> 0 | H26: =G26-F26 -> 0 | V26: =SUM(L26:U26) -> 0 | X26: 20 | AJ26: =SUM(Z26:AI26) -> 0
X27: 21
C28: = | D28: Betrieblicher Rohertrag | F28: =F24+F26 -> 5000 | G28: =G24+G26 -> 4218.487395 | H28: -781.512605 | L28: =L24+L26 -> 3000 | M28: =M24+M26 -> 4218.487395 | N28: -3361.344538 | O28: -5882.352941 | P28: 0 | Q28: 0 | R28: 0 | S28: 0 | T28: 0 | U28: 0 | V28: -2025.210084 | X28: 22 | Z28: =Z24+Z26 -> 0 | AA28: =AA24+AA26 -> 5000 | AB28: 0 | AC28: 0 | AD28: 0 | AE28: 0 | AF28: 0 | AG28: 0 | AH28: 0 | AI28: 0 | AJ28: 5000
X29: 23
D30: Kostenarten: | X30: 24
C31: - | D31: Personalkosten | F31: =HLOOKUP($G$6,$Z$7:AI31,X31,0) -> 350 | G31: =HLOOKUP($G$6,$L$7:U31,X31,0) -> 388 | H31: =G31-F31 -> 38 | L31: =SUMIF(Zeiten[Projekt- Nr.],L$7,Zeiten[S Personalkosten EUR]) -> 216 | M31: =SUMIF(Zeiten[Projekt- Nr.],M$7,Zeiten[S Personalkosten EUR]) -> 388 | N31: =SUMIF(Zeiten[Projekt- Nr.],N$7,Zeiten[S Personalkosten EUR]) -> 0 | O31: =SUMIF(Zeiten[Projekt- Nr.],O$7,Zeiten[S Personalkosten EUR]) -> 414 | P31: =SUMIF(Zeiten[Projekt- Nr.],P$7,Zeiten[S Personalkosten EUR]) -> 0 | Q31: =SUMIF(Zeiten[Projekt- Nr.],Q$7,Zeiten[S Personalkosten EUR]) -> 0 | R31: =SUMIF(Zeiten[Projekt- Nr.],R$7,Zeiten[S Personalkosten EUR]) -> 0 | S31: =SUMIF(Zeiten[Projekt- Nr.],S$7,Zeiten[S Personalkosten EUR]) -> 0 | T31: =SUMIF(Zeiten[Projekt- Nr.],T$7,Zeiten[S Personalkosten EUR]) -> 0 | U31: =SUMIF(Zeiten[Projekt- Nr.],U$7,Zeiten[S Personalkosten EUR]) -> 0 | V31: =SUM(L31:U31) -> 1018 | X31: 25 | Z31: 400 | AA31: 350 | AJ31: =SUM(Z31:AI31) -> 750
C32: - | D32: Raumkosten | F32: =HLOOKUP($G$6,$Z$7:AI32,X32,0) -> 0 | G32: =HLOOKUP($G$6,$L$7:U32,X32,0) -> 0 | H32: 0 | L32: =SUMIFS(Kosten[Netto EUR],Kosten[Projekt- Nr.],L$7,Kosten[Kostenart in BWA/GuV],$D32) -> 0 | M32: =SUMIFS(Kosten[Netto EUR],Kosten[Projekt- Nr.],M$7,Kosten[Kostenart in BWA/GuV],$D32) -> 0 | N32: =SUMIFS(Kosten[Netto EUR],Kosten[Projekt- Nr.],N$7,Kosten[Kostenart in BWA/GuV],$D32) -> 0 | O32: =SUMIFS(Kosten[Netto EUR],Kosten[Projekt- Nr.],O$7,Kosten[Kostenart in BWA/GuV],$D32) -> 0 | P32: =SUMIFS(Kosten[Netto EUR],Kosten[Projekt- Nr.],P$7,Kosten[Kostenart in BWA/GuV],$D32) -> 0 | Q32: =SUMIFS(Kosten[Netto EUR],Kosten[Projekt- Nr.],Q$7,Kosten[Kostenart in BWA/GuV],$D32) -> 0 | R32: =SUMIFS(Kosten[Netto EUR],Kosten[Projekt- Nr.],R$7,Kosten[Kostenart in BWA/GuV],$D32) -> 0 | S32: =SUMIFS(Kosten[Netto EUR],Kosten[Projekt- Nr.],S$7,Kosten[Kostenart in BWA/GuV],$D32) -> 0 | T32: =SUMIFS(Kosten[Netto EUR],Kosten[Projekt- Nr.],T$7,Kosten[Kostenart in BWA/GuV],$D32) -> 0 | U32: =SUMIFS(Kosten[Netto EUR],Kosten[Projekt- Nr.],U$7,Kosten[Kostenart in BWA/GuV],$D32) -> 0 | V32: 0 | X32: 26 | AJ32: 0
C33: - | D33: Betriebliche Steuern | F33: =HLOOKUP($G$6,$Z$7:AI33,X33,0) -> 0 | G33: =HLOOKUP($G$6,$L$7:U33,X33,0) -> 0 | H33: 0 | L33: =SUMIFS(Kosten[Netto EUR],Kosten[Projekt- Nr.],L$7,Kosten[Kostenart in BWA/GuV],$D33) -> 0 | M33: =SUMIFS(Kosten[Netto EUR],Kosten[Projekt- Nr.],M$7,Kosten[Kostenart in BWA/GuV],$D33) -> 0 | N33: =SUMIFS(Kosten[Netto EUR],Kosten[Projekt- Nr.],N$7,Kosten[Kostenart in BWA/GuV],$D33) -> 0 | O33: =SUMIFS(Kosten[Netto EUR],Kosten[Projekt- Nr.],O$7,Kosten[Kostenart in BWA/GuV],$D33) -> 0 | P33: =SUMIFS(Kosten[Netto EUR],Kosten[Projekt- Nr.],P$7,Kosten[Kostenart in BWA/GuV],$D33) -> 0 | Q33: =SUMIFS(Kosten[Netto EUR],Kosten[Projekt- Nr.],Q$7,Kosten[Kostenart in BWA/GuV],$D33) -> 0 | R33: =SUMIFS(Kosten[Netto EUR],Kosten[Projekt- Nr.],R$7,Kosten[Kostenart in BWA/GuV],$D33) -> 0 | S33: =SUMIFS(Kosten[Netto EUR],Kosten[Projekt- Nr.],S$7,Kosten[Kostenart in BWA/GuV],$D33) -> 0 | T33: =SUMIFS(Kosten[Netto EUR],Kosten[Projekt- Nr.],T$7,Kosten[Kostenart in BWA/GuV],$D33) -> 0 | U33: =SUMIFS(Kosten[Netto EUR],Kosten[Projekt- Nr.],U$7,Kosten[Kostenart in BWA/GuV],$D33) -> 0 | V33: 0 | X33: 27 | AJ33: 0
C34: - | D34: Versicherungen/Beiträge | F34: =HLOOKUP($G$6,$Z$7:AI34,X34,0) -> 0 | G34: =HLOOKUP($G$6,$L$7:U34,X34,0) -> 0 | H34: 0 | L34: =SUMIFS(Kosten[Netto EUR],Kosten[Projekt- Nr.],L$7,Kosten[Kostenart in BWA/GuV],$D34) -> 0 | M34: =SUMIFS(Kosten[Netto EUR],Kosten[Projekt- Nr.],M$7,Kosten[Kostenart in BWA/GuV],$D34) -> 0 | N34: =SUMIFS(Kosten[Netto EUR],Kosten[Projekt- Nr.],N$7,Kosten[Kostenart in BWA/GuV],$D34) -> 0 | O34: =SUMIFS(Kosten[Netto EUR],Kosten[Projekt- Nr.],O$7,Kosten[Kostenart in BWA/GuV],$D34) -> 0 | P34: =SUMIFS(Kosten[Netto EUR],Kosten[Projekt- Nr.],P$7,Kosten[Kostenart in BWA/GuV],$D34) -> 0 | Q34: =SUMIFS(Kosten[Netto EUR],Kosten[Projekt- Nr.],Q$7,Kosten[Kostenart in BWA/GuV],$D34) -> 0 | R34: =SUMIFS(Kosten[Netto EUR],Kosten[Projekt- Nr.],R$7,Kosten[Kostenart in BWA/GuV],$D34) -> 0 | S34: =SUMIFS(Kosten[Netto EUR],Kosten[Projekt- Nr.],S$7,Kosten[Kostenart in BWA/GuV],$D34) -> 0 | T34: =SUMIFS(Kosten[Netto EUR],Kosten[Projekt- Nr.],T$7,Kosten[Kostenart in BWA/GuV],$D34) -> 0 | U34: =SUMIFS(Kosten[Netto EUR],Kosten[Projekt- Nr.],U$7,Kosten[Kostenart in BWA/GuV],$D34) -> 0 | V34: 0 | X34: 28 | AJ34: 0
C35: - | D35: Besondere Kosten | F35: =HLOOKUP($G$6,$Z$7:AI35,X35,0) -> 0 | G35: =HLOOKUP($G$6,$L$7:U35,X35,0) -> 0 | H35: 0 | L35: =SUMIFS(Kosten[Netto EUR],Kosten[Projekt- Nr.],L$7,Kosten[Kostenart in BWA/GuV],$D35) -> 0 | M35: =SUMIFS(Kosten[Netto EUR],Kosten[Projekt- Nr.],M$7,Kosten[Kostenart in BWA/GuV],$D35) -> 0 | N35: =SUMIFS(Kosten[Netto EUR],Kosten[Projekt- Nr.],N$7,Kosten[Kostenart in BWA/GuV],$D35) -> 0 | O35: =SUMIFS(Kosten[Netto EUR],Kosten[Projekt- Nr.],O$7,Kosten[Kostenart in BWA/GuV],$D35) -> 2100.840336 | P35: =SUMIFS(Kosten[Netto EUR],Kosten[Projekt- Nr.],P$7,Kosten[Kostenart in BWA/GuV],$D35) -> 0 | Q35: =SUMIFS(Kosten[Netto EUR],Kosten[Projekt- Nr.],Q$7,Kosten[Kostenart in BWA/GuV],$D35) -> 0 | R35: =SUMIFS(Kosten[Netto EUR],Kosten[Projekt- Nr.],R$7,Kosten[Kostenart in BWA/GuV],$D35) -> 0 | S35: =SUMIFS(Kosten[Netto EUR],Kosten[Projekt- Nr.],S$7,Kosten[Kostenart in BWA/GuV],$D35) -> 0 | T35: =SUMIFS(Kosten[Netto EUR],Kosten[Projekt- Nr.],T$7,Kosten[Kostenart in BWA/GuV],$D35) -> 0 | U35: =SUMIFS(Kosten[Netto EUR],Kosten[Projekt- Nr.],U$7,Kosten[Kostenart in BWA/GuV],$D35) -> 0 | V35: 2100.840336 | X35: 29 | AJ35: 0
C36: - | D36: Kfz-Kosten (ohne Steuern) | F36: =HLOOKUP($G$6,$Z$7:AI36,X36,0) -> 0 | G36: =HLOOKUP($G$6,$L$7:U36,X36,0) -> 0 | H36: 0 | L36: =SUMIFS(Kosten[Netto EUR],Kosten[Projekt- Nr.],L$7,Kosten[Kostenart in BWA/GuV],$D36) -> 0 | M36: =SUMIFS(Kosten[Netto EUR],Kosten[Projekt- Nr.],M$7,Kosten[Kostenart in BWA/GuV],$D36) -> 0 | N36: =SUMIFS(Kosten[Netto EUR],Kosten[Projekt- Nr.],N$7,Kosten[Kostenart in BWA/GuV],$D36) -> 0 | O36: =SUMIFS(Kosten[Netto EUR],Kosten[Projekt- Nr.],O$7,Kosten[Kostenart in BWA/GuV],$D36) -> 0 | P36: =SUMIFS(Kosten[Netto EUR],Kosten[Projekt- Nr.],P$7,Kosten[Kostenart in BWA/GuV],$D36) -> 0 | Q36: =SUMIFS(Kosten[Netto EUR],Kosten[Projekt- Nr.],Q$7,Kosten[Kostenart in BWA/GuV],$D36) -> 0 | R36: =SUMIFS(Kosten[Netto EUR],Kosten[Projekt- Nr.],R$7,Kosten[Kostenart in BWA/GuV],$D36) -> 0 | S36: =SUMIFS(Kosten[Netto EUR],Kosten[Projekt- Nr.],S$7,Kosten[Kostenart in BWA/GuV],$D36) -> 0 | T36: =SUMIFS(Kosten[Netto EUR],Kosten[Projekt- Nr.],T$7,Kosten[Kostenart in BWA/GuV],$D36) -> 0 | U36: =SUMIFS(Kosten[Netto EUR],Kosten[Projekt- Nr.],U$7,Kosten[Kostenart in BWA/GuV],$D36) -> 0 | V36: 0 | X36: 30 | AJ36: 0
C37: - | D37: Werbe-/Reisekosten | F37: =HLOOKUP($G$6,$Z$7:AI37,X37,0) -> 0 | G37: =HLOOKUP($G$6,$L$7:U37,X37,0) -> 0 | H37: 0 | L37: =SUMIFS(Kosten[Netto EUR],Kosten[Projekt- Nr.],L$7,Kosten[Kostenart in BWA/GuV],$D37) -> 0 | M37: =SUMIFS(Kosten[Netto EUR],Kosten[Projekt- Nr.],M$7,Kosten[Kostenart in BWA/GuV],$D37) -> 0 | N37: =SUMIFS(Kosten[Netto EUR],Kosten[Projekt- Nr.],N$7,Kosten[Kostenart in BWA/GuV],$D37) -> 0 | O37: =SUMIFS(Kosten[Netto EUR],Kosten[Projekt- Nr.],O$7,Kosten[Kostenart in BWA/GuV],$D37) -> 0 | P37: =SUMIFS(Kosten[Netto EUR],Kosten[Projekt- Nr.],P$7,Kosten[Kostenart in BWA/GuV],$D37) -> 0 | Q37: =SUMIFS(Kosten[Netto EUR],Kosten[Projekt- Nr.],Q$7,Kosten[Kostenart in BWA/GuV],$D37) -> 0 | R37: =SUMIFS(Kosten[Netto EUR],Kosten[Projekt- Nr.],R$7,Kosten[Kostenart in BWA/GuV],$D37) -> 0 | S37: =SUMIFS(Kosten[Netto EUR],Kosten[Projekt- Nr.],S$7,Kosten[Kostenart in BWA/GuV],$D37) -> 0 | T37: =SUMIFS(Kosten[Netto EUR],Kosten[Projekt- Nr.],T$7,Kosten[Kostenart in BWA/GuV],$D37) -> 0 | U37: =SUMIFS(Kosten[Netto EUR],Kosten[Projekt- Nr.],U$7,Kosten[Kostenart in BWA/GuV],$D37) -> 0 | V37: 0 | X37: 31 | AJ37: 0
C38: - | D38: Kosten der Warenabgabe | F38: =HLOOKUP($G$6,$Z$7:AI38,X38,0) -> 0 | G38: =HLOOKUP($G$6,$L$7:U38,X38,0) -> 0 | H38: 0 | L38: =SUMIFS(Kosten[Netto EUR],Kosten[Projekt- Nr.],L$7,Kosten[Kostenart in BWA/GuV],$D38) -> 0 | M38: =SUMIFS(Kosten[Netto EUR],Kosten[Projekt- Nr.],M$7,Kosten[Kostenart in BWA/GuV],$D38) -> 0 | N38: =SUMIFS(Kosten[Netto EUR],Kosten[Projekt- Nr.],N$7,Kosten[Kostenart in BWA/GuV],$D38) -> 0 | O38: =SUMIFS(Kosten[Netto EUR],Kosten[Projekt- Nr.],O$7,Kosten[Kostenart in BWA/GuV],$D38) -> 0 | P38: =SUMIFS(Kosten[Netto EUR],Kosten[Projekt- Nr.],P$7,Kosten[Kostenart in BWA/GuV],$D38) -> 0 | Q38: =SUMIFS(Kosten[Netto EUR],Kosten[Projekt- Nr.],Q$7,Kosten[Kostenart in BWA/GuV],$D38) -> 0 | R38: =SUMIFS(Kosten[Netto EUR],Kosten[Projekt- Nr.],R$7,Kosten[Kostenart in BWA/GuV],$D38) -> 0 | S38: =SUMIFS(Kosten[Netto EUR],Kosten[Projekt- Nr.],S$7,Kosten[Kostenart in BWA/GuV],$D38) -> 0 | T38: =SUMIFS(Kosten[Netto EUR],Kosten[Projekt- Nr.],T$7,Kosten[Kostenart in BWA/GuV],$D38) -> 0 | U38: =SUMIFS(Kosten[Netto EUR],Kosten[Projekt- Nr.],U$7,Kosten[Kostenart in BWA/GuV],$D38) -> 0 | V38: 0 | X38: 32 | AJ38: 0
C39: - | D39: Abschreibungen | F39: =HLOOKUP($G$6,$Z$7:AI39,X39,0) -> 0 | G39: =HLOOKUP($G$6,$L$7:U39,X39,0) -> 0 | H39: 0 | L39: =SUMIFS(Kosten[Netto EUR],Kosten[Projekt- Nr.],L$7,Kosten[Kostenart in BWA/GuV],$D39) -> 0 | M39: =SUMIFS(Kosten[Netto EUR],Kosten[Projekt- Nr.],M$7,Kosten[Kostenart in BWA/GuV],$D39) -> 0 | N39: =SUMIFS(Kosten[Netto EUR],Kosten[Projekt- Nr.],N$7,Kosten[Kostenart in BWA/GuV],$D39) -> 0 | O39: =SUMIFS(Kosten[Netto EUR],Kosten[Projekt- Nr.],O$7,Kosten[Kostenart in BWA/GuV],$D39) -> 0 | P39: =SUMIFS(Kosten[Netto EUR],Kosten[Projekt- Nr.],P$7,Kosten[Kostenart in BWA/GuV],$D39) -> 0 | Q39: =SUMIFS(Kosten[Netto EUR],Kosten[Projekt- Nr.],Q$7,Kosten[Kostenart in BWA/GuV],$D39) -> 0 | R39: =SUMIFS(Kosten[Netto EUR],Kosten[Projekt- Nr.],R$7,Kosten[Kostenart in BWA/GuV],$D39) -> 0 | S39: =SUMIFS(Kosten[Netto EUR],Kosten[Projekt- Nr.],S$7,Kosten[Kostenart in BWA/GuV],$D39) -> 0 | T39: =SUMIFS(Kosten[Netto EUR],Kosten[Projekt- Nr.],T$7,Kosten[Kostenart in BWA/GuV],$D39) -> 0 | U39: =SUMIFS(Kosten[Netto EUR],Kosten[Projekt- Nr.],U$7,Kosten[Kostenart in BWA/GuV],$D39) -> 0 | V39: 0 | X39: 33 | AJ39: 0
C40: - | D40: Reparatur/Instandhaltung | F40: =HLOOKUP($G$6,$Z$7:AI40,X40,0) -> 0 | G40: =HLOOKUP($G$6,$L$7:U40,X40,0) -> 0 | H40: 0 | L40: =SUMIFS(Kosten[Netto EUR],Kosten[Projekt- Nr.],L$7,Kosten[Kostenart in BWA/GuV],$D40) -> 0 | M40: =SUMIFS(Kosten[Netto EUR],Kosten[Projekt- Nr.],M$7,Kosten[Kostenart in BWA/GuV],$D40) -> 0 | N40: =SUMIFS(Kosten[Netto EUR],Kosten[Projekt- Nr.],N$7,Kosten[Kostenart in BWA/GuV],$D40) -> 0 | O40: =SUMIFS(Kosten[Netto EUR],Kosten[Projekt- Nr.],O$7,Kosten[Kostenart in BWA/GuV],$D40) -> 0 | P40: =SUMIFS(Kosten[Netto EUR],Kosten[Projekt- Nr.],P$7,Kosten[Kostenart in BWA/GuV],$D40) -> 0 | Q40: =SUMIFS(Kosten[Netto EUR],Kosten[Projekt- Nr.],Q$7,Kosten[Kostenart in BWA/GuV],$D40) -> 0 | R40: =SUMIFS(Kosten[Netto EUR],Kosten[Projekt- Nr.],R$7,Kosten[Kostenart in BWA/GuV],$D40) -> 0 | S40: =SUMIFS(Kosten[Netto EUR],Kosten[Projekt- Nr.],S$7,Kosten[Kostenart in BWA/GuV],$D40) -> 0 | T40: =SUMIFS(Kosten[Netto EUR],Kosten[Projekt- Nr.],T$7,Kosten[Kostenart in BWA/GuV],$D40) -> 0 | U40: =SUMIFS(Kosten[Netto EUR],Kosten[Projekt- Nr.],U$7,Kosten[Kostenart in BWA/GuV],$D40) -> 0 | V40: 0 | X40: 34 | AJ40: 0
C41: - | D41: frei | F41: =HLOOKUP($G$6,$Z$7:AI41,X41,0) -> 0 | G41: =HLOOKUP($G$6,$L$7:U41,X41,0) -> 0 | H41: 0 | L41: =SUMIFS(Kosten[Netto EUR],Kosten[Projekt- Nr.],L$7,Kosten[Kostenart in BWA/GuV],$D41) -> 0 | M41: =SUMIFS(Kosten[Netto EUR],Kosten[Projekt- Nr.],M$7,Kosten[Kostenart in BWA/GuV],$D41) -> 0 | N41: =SUMIFS(Kosten[Netto EUR],Kosten[Projekt- Nr.],N$7,Kosten[Kostenart in BWA/GuV],$D41) -> 0 | O41: =SUMIFS(Kosten[Netto EUR],Kosten[Projekt- Nr.],O$7,Kosten[Kostenart in BWA/GuV],$D41) -> 0 | P41: =SUMIFS(Kosten[Netto EUR],Kosten[Projekt- Nr.],P$7,Kosten[Kostenart in BWA/GuV],$D41) -> 0 | Q41: =SUMIFS(Kosten[Netto EUR],Kosten[Projekt- Nr.],Q$7,Kosten[Kostenart in BWA/GuV],$D41) -> 0 | R41: =SUMIFS(Kosten[Netto EUR],Kosten[Projekt- Nr.],R$7,Kosten[Kostenart in BWA/GuV],$D41) -> 0 | S41: =SUMIFS(Kosten[Netto EUR],Kosten[Projekt- Nr.],S$7,Kosten[Kostenart in BWA/GuV],$D41) -> 0 | T41: =SUMIFS(Kosten[Netto EUR],Kosten[Projekt- Nr.],T$7,Kosten[Kostenart in BWA/GuV],$D41) -> 0 | U41: =SUMIFS(Kosten[Netto EUR],Kosten[Projekt- Nr.],U$7,Kosten[Kostenart in BWA/GuV],$D41) -> 0 | V41: 0 | X41: 35 | AJ41: 0
C42: - | D42: frei | F42: =HLOOKUP($G$6,$Z$7:AI42,X42,0) -> 0 | G42: =HLOOKUP($G$6,$L$7:U42,X42,0) -> 0 | H42: 0 | L42: =SUMIFS(Kosten[Netto EUR],Kosten[Projekt- Nr.],L$7,Kosten[Kostenart in BWA/GuV],$D42) -> 0 | M42: =SUMIFS(Kosten[Netto EUR],Kosten[Projekt- Nr.],M$7,Kosten[Kostenart in BWA/GuV],$D42) -> 0 | N42: =SUMIFS(Kosten[Netto EUR],Kosten[Projekt- Nr.],N$7,Kosten[Kostenart in BWA/GuV],$D42) -> 0 | O42: =SUMIFS(Kosten[Netto EUR],Kosten[Projekt- Nr.],O$7,Kosten[Kostenart in BWA/GuV],$D42) -> 0 | P42: =SUMIFS(Kosten[Netto EUR],Kosten[Projekt- Nr.],P$7,Kosten[Kostenart in BWA/GuV],$D42) -> 0 | Q42: =SUMIFS(Kosten[Netto EUR],Kosten[Projekt- Nr.],Q$7,Kosten[Kostenart in BWA/GuV],$D42) -> 0 | R42: =SUMIFS(Kosten[Netto EUR],Kosten[Projekt- Nr.],R$7,Kosten[Kostenart in BWA/GuV],$D42) -> 0 | S42: =SUMIFS(Kosten[Netto EUR],Kosten[Projekt- Nr.],S$7,Kosten[Kostenart in BWA/GuV],$D42) -> 0 | T42: =SUMIFS(Kosten[Netto EUR],Kosten[Projekt- Nr.],T$7,Kosten[Kostenart in BWA/GuV],$D42) -> 0 | U42: =SUMIFS(Kosten[Netto EUR],Kosten[Projekt- Nr.],U$7,Kosten[Kostenart in BWA/GuV],$D42) -> 0 | V42: 0 | X42: 36 | AJ42: 0
C43: - | D43: frei | F43: =HLOOKUP($G$6,$Z$7:AI43,X43,0) -> 0 | G43: =HLOOKUP($G$6,$L$7:U43,X43,0) -> 0 | H43: 0 | L43: =SUMIFS(Kosten[Netto EUR],Kosten[Projekt- Nr.],L$7,Kosten[Kostenart in BWA/GuV],$D43) -> 0 | M43: =SUMIFS(Kosten[Netto EUR],Kosten[Projekt- Nr.],M$7,Kosten[Kostenart in BWA/GuV],$D43) -> 0 | N43: =SUMIFS(Kosten[Netto EUR],Kosten[Projekt- Nr.],N$7,Kosten[Kostenart in BWA/GuV],$D43) -> 0 | O43: =SUMIFS(Kosten[Netto EUR],Kosten[Projekt- Nr.],O$7,Kosten[Kostenart in BWA/GuV],$D43) -> 0 | P43: =SUMIFS(Kosten[Netto EUR],Kosten[Projekt- Nr.],P$7,Kosten[Kostenart in BWA/GuV],$D43) -> 0 | Q43: =SUMIFS(Kosten[Netto EUR],Kosten[Projekt- Nr.],Q$7,Kosten[Kostenart in BWA/GuV],$D43) -> 0 | R43: =SUMIFS(Kosten[Netto EUR],Kosten[Projekt- Nr.],R$7,Kosten[Kostenart in BWA/GuV],$D43) -> 0 | S43: =SUMIFS(Kosten[Netto EUR],Kosten[Projekt- Nr.],S$7,Kosten[Kostenart in BWA/GuV],$D43) -> 0 | T43: =SUMIFS(Kosten[Netto EUR],Kosten[Projekt- Nr.],T$7,Kosten[Kostenart in BWA/GuV],$D43) -> 0 | U43: =SUMIFS(Kosten[Netto EUR],Kosten[Projekt- Nr.],U$7,Kosten[Kostenart in BWA/GuV],$D43) -> 0 | V43: 0 | X43: 37 | AJ43: 0
C44: - | D44: frei | F44: =HLOOKUP($G$6,$Z$7:AI44,X44,0) -> 0 | G44: =HLOOKUP($G$6,$L$7:U44,X44,0) -> 0 | H44: 0 | L44: =SUMIFS(Kosten[Netto EUR],Kosten[Projekt- Nr.],L$7,Kosten[Kostenart in BWA/GuV],$D44) -> 0 | M44: =SUMIFS(Kosten[Netto EUR],Kosten[Projekt- Nr.],M$7,Kosten[Kostenart in BWA/GuV],$D44) -> 0 | N44: =SUMIFS(Kosten[Netto EUR],Kosten[Projekt- Nr.],N$7,Kosten[Kostenart in BWA/GuV],$D44) -> 0 | O44: =SUMIFS(Kosten[Netto EUR],Kosten[Projekt- Nr.],O$7,Kosten[Kostenart in BWA/GuV],$D44) -> 0 | P44: =SUMIFS(Kosten[Netto EUR],Kosten[Projekt- Nr.],P$7,Kosten[Kostenart in BWA/GuV],$D44) -> 0 | Q44: =SUMIFS(Kosten[Netto EUR],Kosten[Projekt- Nr.],Q$7,Kosten[Kostenart in BWA/GuV],$D44) -> 0 | R44: =SUMIFS(Kosten[Netto EUR],Kosten[Projekt- Nr.],R$7,Kosten[Kostenart in BWA/GuV],$D44) -> 0 | S44: =SUMIFS(Kosten[Netto EUR],Kosten[Projekt- Nr.],S$7,Kosten[Kostenart in BWA/GuV],$D44) -> 0 | T44: =SUMIFS(Kosten[Netto EUR],Kosten[Projekt- Nr.],T$7,Kosten[Kostenart in BWA/GuV],$D44) -> 0 | U44: =SUMIFS(Kosten[Netto EUR],Kosten[Projekt- Nr.],U$7,Kosten[Kostenart in BWA/GuV],$D44) -> 0 | V44: 0 | X44: 38 | AJ44: 0
C45: - | D45: frei | F45: =HLOOKUP($G$6,$Z$7:AI45,X45,0) -> 0 | G45: =HLOOKUP($G$6,$L$7:U45,X45,0) -> 0 | H45: 0 | L45: =SUMIFS(Kosten[Netto EUR],Kosten[Projekt- Nr.],L$7,Kosten[Kostenart in BWA/GuV],$D45) -> 0 | M45: =SUMIFS(Kosten[Netto EUR],Kosten[Projekt- Nr.],M$7,Kosten[Kostenart in BWA/GuV],$D45) -> 0 | N45: =SUMIFS(Kosten[Netto EUR],Kosten[Projekt- Nr.],N$7,Kosten[Kostenart in BWA/GuV],$D45) -> 0 | O45: =SUMIFS(Kosten[Netto EUR],Kosten[Projekt- Nr.],O$7,Kosten[Kostenart in BWA/GuV],$D45) -> 0 | P45: =SUMIFS(Kosten[Netto EUR],Kosten[Projekt- Nr.],P$7,Kosten[Kostenart in BWA/GuV],$D45) -> 0 | Q45: =SUMIFS(Kosten[Netto EUR],Kosten[Projekt- Nr.],Q$7,Kosten[Kostenart in BWA/GuV],$D45) -> 0 | R45: =SUMIFS(Kosten[Netto EUR],Kosten[Projekt- Nr.],R$7,Kosten[Kostenart in BWA/GuV],$D45) -> 0 | S45: =SUMIFS(Kosten[Netto EUR],Kosten[Projekt- Nr.],S$7,Kosten[Kostenart in BWA/GuV],$D45) -> 0 | T45: =SUMIFS(Kosten[Netto EUR],Kosten[Projekt- Nr.],T$7,Kosten[Kostenart in BWA/GuV],$D45) -> 0 | U45: =SUMIFS(Kosten[Netto EUR],Kosten[Projekt- Nr.],U$7,Kosten[Kostenart in BWA/GuV],$D45) -> 0 | V45: 0 | X45: 39 | AJ45: 0
C46: - | D46: Sonstige Kosten | F46: =HLOOKUP($G$6,$Z$7:AI46,X46,0) -> 0 | G46: =HLOOKUP($G$6,$L$7:U46,X46,0) -> 0 | H46: 0 | L46: =SUMIFS(Kosten[Netto EUR],Kosten[Projekt- Nr.],L$7,Kosten[Kostenart in BWA/GuV],$D46) -> 0 | M46: =SUMIFS(Kosten[Netto EUR],Kosten[Projekt- Nr.],M$7,Kosten[Kostenart in BWA/GuV],$D46) -> 0 | N46: =SUMIFS(Kosten[Netto EUR],Kosten[Projekt- Nr.],N$7,Kosten[Kostenart in BWA/GuV],$D46) -> 0 | O46: =SUMIFS(Kosten[Netto EUR],Kosten[Projekt- Nr.],O$7,Kosten[Kostenart in BWA/GuV],$D46) -> 0 | P46: =SUMIFS(Kosten[Netto EUR],Kosten[Projekt- Nr.],P$7,Kosten[Kostenart in BWA/GuV],$D46) -> 0 | Q46: =SUMIFS(Kosten[Netto EUR],Kosten[Projekt- Nr.],Q$7,Kosten[Kostenart in BWA/GuV],$D46) -> 0 | R46: =SUMIFS(Kosten[Netto EUR],Kosten[Projekt- Nr.],R$7,Kosten[Kostenart in BWA/GuV],$D46) -> 0 | S46: =SUMIFS(Kosten[Netto EUR],Kosten[Projekt- Nr.],S$7,Kosten[Kostenart in BWA/GuV],$D46) -> 0 | T46: =SUMIFS(Kosten[Netto EUR],Kosten[Projekt- Nr.],T$7,Kosten[Kostenart in BWA/GuV],$D46) -> 0 | U46: =SUMIFS(Kosten[Netto EUR],Kosten[Projekt- Nr.],U$7,Kosten[Kostenart in BWA/GuV],$D46) -> 0 | V46: 0 | X46: 40 | AJ46: 0
C47: = | D47: S Gesamtkosten | F47: =SUM(F31:F46) -> 350 | G47: =SUM(G31:G46) -> 388 | H47: 38 | L47: =SUM(L31:L46) -> 216 | M47: =SUM(M31:M46) -> 388 | N47: 0 | O47: 2514.840336 | P47: 0 | Q47: 0 | R47: 0 | S47: 0 | T47: 0 | U47: 0 | V47: 3118.840336 | X47: 41 | Z47: =SUM(Z31:Z46) -> 400 | AA47: =SUM(AA31:AA46) -> 350 | AB47: 0 | AC47: 0 | AD47: 0 | AE47: 0 | AF47: 0 | AG47: 0 | AH47: 0 | AI47: 0 | AJ47: 750
X48: 42
C49: = | D49: Betriebsergebnis | F49: =F28-F47 -> 4650 | G49: =G28-G47 -> 3830.487395 | H49: -819.512605 | L49: =L28-L47 -> 2784 | M49: =M28-M47 -> 3830.487395 | N49: -3361.344538 | O49: -8397.193277 | P49: 0 | Q49: 0 | R49: 0 | S49: 0 | T49: 0 | U49: 0 | V49: -5144.05042 | X49: 43 | Z49: =Z28-Z47 -> -400 | AA49: =AA28-AA47 -> 4650 | AB49: 0 | AC49: 0 | AD49: 0 | AE49: 0 | AF49: 0 | AG49: 0 | AH49: 0 | AI49: 0 | AJ49: 4250
X50: 44
C51: - | D51: Zinsaufwand | F51: =HLOOKUP($G$6,$Z$7:AI51,X51,0) -> 0 | G51: =HLOOKUP($G$6,$L$7:U51,X51,0) -> 0 | H51: =G51-F51 -> 0 | L51: =SUMIFS(Kosten[Netto EUR],Kosten[Projekt- Nr.],L$7,Kosten[Kostenart in BWA/GuV],$D51) -> 0 | M51: =SUMIFS(Kosten[Netto EUR],Kosten[Projekt- Nr.],M$7,Kosten[Kostenart in BWA/GuV],$D51) -> 0 | N51: =SUMIFS(Kosten[Netto EUR],Kosten[Projekt- Nr.],N$7,Kosten[Kostenart in BWA/GuV],$D51) -> 0 | O51: =SUMIFS(Kosten[Netto EUR],Kosten[Projekt- Nr.],O$7,Kosten[Kostenart in BWA/GuV],$D51) -> 0 | P51: =SUMIFS(Kosten[Netto EUR],Kosten[Projekt- Nr.],P$7,Kosten[Kostenart in BWA/GuV],$D51) -> 0 | Q51: =SUMIFS(Kosten[Netto EUR],Kosten[Projekt- Nr.],Q$7,Kosten[Kostenart in BWA/GuV],$D51) -> 0 | R51: =SUMIFS(Kosten[Netto EUR],Kosten[Projekt- Nr.],R$7,Kosten[Kostenart in BWA/GuV],$D51) -> 0 | S51: =SUMIFS(Kosten[Netto EUR],Kosten[Projekt- Nr.],S$7,Kosten[Kostenart in BWA/GuV],$D51) -> 0 | T51: =SUMIFS(Kosten[Netto EUR],Kosten[Projekt- Nr.],T$7,Kosten[Kostenart in BWA/GuV],$D51) -> 0 | U51: =SUMIFS(Kosten[Netto EUR],Kosten[Projekt- Nr.],U$7,Kosten[Kostenart in BWA/GuV],$D51) -> 0 | V51: =SUM(L51:U51) -> 0 | X51: 45 | AJ51: =SUM(Z51:AI51) -> 0
C52: - | D52: sonst. neutraler Aufwand | F52: =HLOOKUP($G$6,$Z$7:AI52,X52,0) -> 0 | G52: =HLOOKUP($G$6,$L$7:U52,X52,0) -> 0 | H52: 0 | V52: =SUM(L52:U52) -> 0 | X52: 46 | AJ52: =SUM(Z52:AI52) -> 0
C53: = | D53: S Neutraler Aufwand | F53: =SUM(F51:F52) -> 0 | G53: =SUM(G51:G52) -> 0 | H53: 0 | L53: =SUM(L51:L52) -> 0 | M53: =SUM(M51:M52) -> 0 | N53: 0 | O53: 0 | P53: 0 | Q53: 0 | R53: 0 | S53: 0 | T53: 0 | U53: 0 | V53: 0 | X53: 47 | Z53: =SUM(Z51:Z52) -> 0 | AA53: =SUM(AA51:AA52) -> 0 | AB53: 0 | AC53: 0 | AD53: 0 | AE53: 0 | AF53: 0 | AG53: 0 | AH53: 0 | AI53: 0 | AJ53: 0
X54: 48
C55: + | D55: Zinserträge | F55: =HLOOKUP($G$6,$Z$7:AI55,X55,0) -> 0 | G55: =HLOOKUP($G$6,$L$7:U55,X55,0) -> 0 | H55: =G55-F55 -> 0 | L55: =SUMIFS(Kosten[Netto EUR],Kosten[Projekt- Nr.],L$7,Kosten[Kostenart in BWA/GuV],$D55) -> 0 | M55: =SUMIFS(Kosten[Netto EUR],Kosten[Projekt- Nr.],M$7,Kosten[Kostenart in BWA/GuV],$D55) -> 0 | N55: =SUMIFS(Kosten[Netto EUR],Kosten[Projekt- Nr.],N$7,Kosten[Kostenart in BWA/GuV],$D55) -> 0 | O55: =SUMIFS(Kosten[Netto EUR],Kosten[Projekt- Nr.],O$7,Kosten[Kostenart in BWA/GuV],$D55) -> 0 | P55: =SUMIFS(Kosten[Netto EUR],Kosten[Projekt- Nr.],P$7,Kosten[Kostenart in BWA/GuV],$D55) -> 0 | Q55: =SUMIFS(Kosten[Netto EUR],Kosten[Projekt- Nr.],Q$7,Kosten[Kostenart in BWA/GuV],$D55) -> 0 | R55: =SUMIFS(Kosten[Netto EUR],Kosten[Projekt- Nr.],R$7,Kosten[Kostenart in BWA/GuV],$D55) -> 0 | S55: =SUMIFS(Kosten[Netto EUR],Kosten[Projekt- Nr.],S$7,Kosten[Kostenart in BWA/GuV],$D55) -> 0 | T55: =SUMIFS(Kosten[Netto EUR],Kosten[Projekt- Nr.],T$7,Kosten[Kostenart in BWA/GuV],$D55) -> 0 | U55: =SUMIFS(Kosten[Netto EUR],Kosten[Projekt- Nr.],U$7,Kosten[Kostenart in BWA/GuV],$D55) -> 0 | V55: =SUM(L55:U55) -> 0 | X55: 49 | AJ55: =SUM(Z55:AI55) -> 0
C56: + | D56: Sonst. neutrale Erträge | F56: =HLOOKUP($G$6,$Z$7:AI56,X56,0) -> 0 | G56: =HLOOKUP($G$6,$L$7:U56,X56,0) -> 0 | H56: 0 | V56: =SUM(L56:U56) -> 0 | X56: 50 | AJ56: =SUM(Z56:AI56) -> 0
C57: + | D57: Kalkulatorische Kosten | F57: =HLOOKUP($G$6,$Z$7:AI57,X57,0) -> 0 | G57: =HLOOKUP($G$6,$L$7:U57,X57,0) -> 0 | H57: 0 | X57: 51
C58: = | D58: S Neutraler Ertrag | F58: =SUM(F55:F57) -> 0 | G58: =SUM(G55:G57) -> 0 | H58: 0 | L58: =SUM(L55:L57) -> 0 | M58: =SUM(M55:M57) -> 0 | N58: 0 | O58: 0 | P58: 0 | Q58: 0 | R58: 0 | S58: 0 | T58: 0 | U58: 0 | V58: 0 | X58: 52 | Z58: =SUM(Z55:Z57) -> 0 | AA58: =SUM(AA55:AA57) -> 0 | AB58: 0 | AC58: 0 | AD58: 0 | AE58: 0 | AF58: 0 | AG58: 0 | AH58: 0 | AI58: 0 | AJ58: 0
X59: 53
C60: = | D60: Ergebnis vor Steuern | F60: =F49-F53+F58 -> 4650 | G60: =G49-G53+G58 -> 3830.487395 | H60: -819.512605 | L60: =L49-L53+L58 -> 2784 | M60: =M49-M53+M58 -> 3830.487395 | N60: -3361.344538 | O60: -8397.193277 | P60: 0 | Q60: 0 | R60: 0 | S60: 0 | T60: 0 | U60: 0 | V60: -5144.05042 | X60: 54 | Z60: =Z49-Z53+Z58 -> -400 | AA60: =AA49-AA53+AA58 -> 4650 | AB60: 0 | AC60: 0 | AD60: 0 | AE60: 0 | AF60: 0 | AG60: 0 | AH60: 0 | AI60: 0 | AJ60: 4250
X61: 55
D62: Arbeitstage: | F62: =HLOOKUP($G$6,$Z$7:AI62,X62,0) -> 80 | G62: =HLOOKUP($G$6,$L$7:U62,X62,0) -> 75 | H62: =G62-F62 -> -5 | L62: 55 | M62: 75 | V62: =SUM(L62:U62) -> 130 | X62: 56 | Z62: 50 | AA62: 80 | AJ62: =SUM(Z62:AI62) -> 130
X63: 57
D64: Feiertage: | F64: =HLOOKUP($G$6,$Z$7:AI64,X64,0) -> 3 | G64: =HLOOKUP($G$6,$L$7:U64,X64,0) -> 3 | H64: =G64-F64 -> 0 | L64: 2 | M64: 3 | V64: =SUM(L64:U64) -> 5 | X64: 58 | Z64: 2 | AA64: 3 | AJ64: =SUM(Z64:AI64) -> 5
D67: Weitere Kennzahlen:
D69: Umsatz / Arbeitstag in € | F69: =IF(F62=0,0,SUM(F10:F10)/F62) -> 125 | G69: =IF(G62=0,0,SUM(G10:G10)/G62) -> 106.6666667 | H69: =G69-F69 -> -18.33333333 | L69: =IF(L62="",0,SUM(L10:L10)/L62) -> 90.90909091 | M69: 106.6666667 | N69: 0 | O69: 0 | P69: 0 | Q69: 0 | R69: 0 | S69: 0 | T69: 0 | U69: 0 | V69: =IF(V62=0,0,SUM(V10:V10)/V62) -> 100 | Z69: =IF(Z62="",0,SUM(Z10:Z10)/Z62) -> 100 | AA69: 125 | AB69: 0 | AC69: 0 | AD69: 0 | AE69: 0 | AF69: 0 | AG69: 0 | AH69: 0 | AI69: 0 | AJ69: =IF(AJ62=0,0,SUM(AJ10:AJ10)/AJ62) -> 115.3846154
D70: Umsatzrendite | F70: =IF(F14=0,0,F60/F14) -> 0.465 | G70: =IF(G14=0,0,G60/G14) -> 0.4788109244 | H70: 0.01381092437 | L70: =IF(L14=0,0,L60/L14) -> 0.5568 | M70: =IF(M14=0,0,M60/M14) -> 0.4788109244 | N70: 0 | O70: 0 | P70: 0 | Q70: 0 | R70: 0 | S70: 0 | T70: 0 | U70: 0 | V70: -0.3956961862 | Z70: =IF(Z14=0,0,Z60/Z14) -> -0.08 | AA70: =IF(AA14=0,0,AA60/AA14) -> 0.465 | AB70: 0 | AC70: 0 | AD70: 0 | AE70: 0 | AF70: 0 | AG70: 0 | AH70: 0 | AI70: 0 | AJ70: 0.2833333333
D71: Materialquote | F71: =IF(SUM(F10:F10)=0,0,F16/SUM(F10:F10)) -> 0.5 | G71: =IF(SUM(G10:G10)=0,0,G16/SUM(G10:G10)) -> 0.4726890756 | H71: -0.02731092437 | L71: =IF(SUM(L10:L10)=0,0,L16/SUM(L10:L10)) -> 0 | M71: 0.4726890756 | N71: 0 | O71: 0 | P71: 0 | Q71: 0 | R71: 0 | S71: 0 | T71: 0 | U71: 0 | V71: 0.58177117 | Z71: =IF(SUM(Z10:Z10)=0,0,Z16/SUM(Z10:Z10)) -> 1 | AA71: 0.5 | AB71: 0 | AC71: 0 | AD71: 0 | AE71: 0 | AF71: 0 | AG71: 0 | AH71: 0 | AI71: 0 | AJ71: 0.6666666667
D72: Personalquote | F72: =IF(SUM(F10:F10)=0,0,F31/SUM(F10:F10)) -> 0.035 | G72: =IF(SUM(G10:G10)=0,0,G31/SUM(G10:G10)) -> 0.0485 | H72: 0.0135 | L72: =IF(SUM(L10:L10)=0,0,L31/SUM(L10:L10)) -> 0.0432 | M72: 0.0485 | N72: 0 | O72: 0 | P72: 0 | Q72: 0 | R72: 0 | S72: 0 | T72: 0 | U72: 0 | V72: 0.07830769231 | Z72: =IF(SUM(Z10:Z10)=0,0,Z31/SUM(Z10:Z10)) -> 0.08 | AA72: 0.035 | AB72: 0 | AC72: 0 | AD72: 0 | AE72: 0 | AF72: 0 | AG72: 0 | AH72: 0 | AI72: 0 | AJ72: 0.05
D73: Gesamtaufwand in € | F73: =F22+F47 -> 5350 | G73: =G22+G47 -> 4169.512605 | H73: -1180.487395 | L73: =L22+L47 -> 2216 | M73: =M22+M47 -> 4169.512605 | N73: 3361.344538 | O73: 8397.193277 | P73: 0 | Q73: 0 | R73: 0 | S73: 0 | T73: 0 | U73: 0 | V73: 18144.05042 | Z73: =Z22+Z47 -> 5400 | AA73: =AA22+AA47 -> 5350 | AB73: 0 | AC73: 0 | AD73: 0 | AE73: 0 | AF73: 0 | AG73: 0 | AH73: 0 | AI73: 0 | AJ73: 10750
D74: Aufwandsquote | F74: =IF(SUM(F10:F10)=0,0,F73/SUM(F10:F10)) -> 0.535 | G74: =IF(SUM(G10:G10)=0,0,G73/SUM(G10:G10)) -> 0.5211890756 | H74: -0.01381092437 | L74: =IF(SUM(L10:L10)=0,0,L73/SUM(L10:L10)) -> 0.4432 | M74: 0.5211890756 | N74: 0 | O74: 0 | P74: 0 | Q74: 0 | R74: 0 | S74: 0 | T74: 0 | U74: 0 | V74: 1.395696186 | Z74: =IF(SUM(Z10:Z10)=0,0,Z73/SUM(Z10:Z10)) -> 1.08 | AA74: 0.535 | AB74: 0 | AC74: 0 | AD74: 0 | AE74: 0 | AF74: 0 | AG74: 0 | AH74: 0 | AI74: 0 | AJ74: 0.7166666667

Sheet Anwendungshilfe
B2: Anwendungshilfe für die Projektkostenerfassung
B6: Inhaltsübersicht
C8: 1. | D8: Technische Informationen zur Anwendung des Tools
C9: 2. | D9: Praktische Hinweise zum Erstellen/Ausfüllen der Projektkostenerfassung
C10: 3. | D10: Kostenlose Version vers. Premiumversion
C11: 4. | D11: Betriebswirtschaftliche Betrachtungen zur Projektkostenerfassung
B13: =CONCATENATE($C$8," ",$D$8) -> 1. Technische Informationen zur Anwendung des Tools
C15: Das Tool besteht aktuell aus den folgenden Tabellenblättern und enthält keine Makros
C16: Die einzelnen Tabellenblätter beinhalten: | E16: Wechsel zu Blatt …
D17: » Kostenerfassung | E17: Kosten
D18: » Zeiterfassung | E18: Zeiten
D19: » Summen der Kosten und Zeiten je Projekt | E19: Projektsummen
D20: » Detailübersicht der einzelnen Positionen | E20: Projektdetails
D21: » Plan-Ist-Vergleich der Projektkosten | E21: Plan-Ist-Vgl
D22: » Anwendungshilfe (dieses Tabellenblatt)
C24: Dieses Tool dient zur Erfassung und Analyse von Kosten und Zeiten, welche in Projekten anfallen oder auf Aufträge geschrieben werden
C25: Es werden einige Excel-Funktionen und -Tricks verwendet, welche in der Premiumversion zusätzlich in Kommentaren erläutert werden
C26: Dies sind u.a. folgende Funktionen in alphabetischer Reihenfolge:
D28: HEUTE
D29: SUMME
D30: SUMMEWENN
D31: SUMMEWENNS
D32: SVERWEIS
D33: TEILERGEBNIS
D34: WENN
D35: WVERWEIS
D36: sowie Bedingte Formatierungen, Gültigkeitsüberprüfung per Dropdown-Liste und Sprungmarken mit Hyperlinks auf Zellen und Namen
C38: Tabellenblatt: Kosten
C40: In dem Tabellenblatt "Kosten" können eingehende Rechnungen für Materialien, Dienstleistungen u.ä. erfasst werden
C41: Sind noch keine Projekte angelegt oder ist das Projekt neu, so müssen zunächst Projekt-Nr. und -bezeichnung erfasst werden
C42: Wenn die Projektnummer und die Projektbezeichnung im Tabellenblatt "Projektsummen" vorhanden sind,
C43: steht die Projektnummer per Dropdown-Liste zur Verfügung und die Projektbezeichnung wird automatisch ergänzt
C44: Für die Erfassung der ersten Datensätze können die Beispieldaten einfach überschrieben oder zeilenweise gelöscht werden
C45: Neue Rechnung eingeben:
C46: In die nächste, freie Zeile unterhalb der formatierten Tabelle in Spalte B das Datum der neuen Rechnung eingeben
C47: Die Dynamische Tabelle erweitert sich dadurch entsprechend um eine neue Zeile und weitere Daten der Rechnung können eingegeben werden
C48: Die Projekt-Nr. ist über die Dropdown-Liste zu wählen, kann aber auch händisch eingegeben werden
C49: Bei einer fehlerhaften oder nicht in dem Tabellenblatt "Projektsummen" angelegten Projekt-Nr. erscheint eine Fehlermeldung
C50: Eine Kostenart kann eingegeben werden, damit die Kosten dem BWA-Schema im Plan-Ist-Vergleich zugeordnet werden können
C51: Die Kostenarten werden in dem BWA-Schema vorgegeben und stehen abschließend per Dropdown-Liste zur Verfügung
C52: Die Nettosumme berechnet sich automatisch anhand des Bruttobetrages und des MwSt-Satzes (als ganze Zahl eingeben)
C53: In den ausgeblendeten Spalten l-N können weitere Daten wie z.B. Planwerte, Bezeichnungen, Mengen u.ä. eingetragen werden
C55: Tabellenblatt: Zeiten
C57: In dem Tabellenblatt "Zeiten" können für die Projektmitarbeiter deren Leistungen, Zeiten, Stundensätze und Spesen erfasst werden
C58: Sind noch keine Projekte angelegt oder ist das Projekt neu, so müssen zunächst Projekt-Nr. und -bezeichnung erfasst werden
C59: Wenn die Projekt-Nr. und die Projektbezeichnung im Tabellenblatt "Projektsummen" vorhanden sind,
C60: steht die Projekt-Nr. hier per Dropdown-Liste zur Verfügung und die Bezeichnung wird nach deren Eingabe automatisch ergänzt
C61: Für die Erfassung der ersten Datensätze können die Beispieldaten einfach überschrieben oder gelöscht werden
C62: Neue Arbeitszeiten eingeben:
C63: In die nächste, freie Zeile unterhalb der formatierten Tabelle in Spalte B das Datum der erbrachten Leistung eingeben
C64: Die Dynamische Tabelle erweitert sich dadurch entsprechend um eine neue Zeile und weitere Daten können eingegeben werden
C65: Die Projekt-Nr. ist über die Dropdown-Liste zu wählen, kann aber auch händisch eingegeben werden
C66: Stunden sind in dezimal-Schreibweise einzugeben
C67: Bei einer fehlerhaften oder nicht in dem Tabellenblatt "Projektsummen" angelegten Projekt-Nr. erscheint eine Fehlermeldung
C68: Die bewertete Arbeitszeit und die Summe der Personalkosten berechnet sich automatisch anhand der Eingaben
C69: In den ausgeblendeten Spalten L und M können weitere Daten wie z.B. Planwerte oder sonstige Hinweise eingetragen werden
C71: Tabellenblatt: Projektsummen
C73: Neuanlage von Projekt-Nr. und -Bezeichnung:
C75: Diese Inhalte enhält nur die Premiumversion
C82: Aktualisierung der Projektsummen:
C84: Diese Inhalte enhält nur die Premiumversion
C88: Tabellenblatt: Projektdetails
C90: Diese Inhalte enhält nur die Premiumversion
C99: Makro:
C101: Diese Inhalte enhält nur die Premiumversion
C105: Tabellenblatt: Plan-Ist-Vgl
C107: Diese Inhalte enhält nur die Premiumversion
B116: =CONCATENATE($C$9," ",$D$9) -> 2. Praktische Hinweise zum Erstellen/Ausfüllen der Projektkostenerfassung
B133: =CONCATENATE($C$10," ",$D$10) -> 3. Kostenlose Version vers. Premiumversion
C135: Kostenlose Version der Projektkostenerfassung
C137: Die vorliegende, kostenlose Version der Projektkostenerfassung wird zur ausschließlichen privaten
C138: oder auch persönlichen Nutzung in Unternehmen bereitgestellt. Die Struktur und die Daten in dieser Datei unterliegen
C139: dem Urheberschutz. Sie können für den eigenen Gebrauch abgeändert und erweitert werden.
C140: Eine kommerzielle Nutzung sowie eine Weitergabe an Dritte ob entgeltlich oder unentgeltlich sind nicht gestattet
C141: Sollten Sie die Datei weiterentwickeln, würden wir und unsere Community uns über Ihr Update freuen…
C142: Über einen freiwilligen Obolus in Anerkennung unseres kostenfreien Angebotes freuen wir uns selbstverständlich auch:
D143: Auf https://ko-fi.com/controllerspielwiese können Sie uns gerne einen Kaffee spendieren …
C144: Wenn Ihnen unsere Arbeit gefällt, können Sie kostenfrei Mitglied auf der CS werden:
D145: https://www.controllerspielwiese.de/inhalte/wir/formular-mitglied-werden.php
C146: Sie bekommen dann unseren ca. 6-8 mal im Jahr erscheinenden Newsletter zugeschickt
C148: Premiumversion der Projektkostenerfassung
C150: In der Premiumversion sind alle Formeln und Funktionen frei zugänglich und veränderbar
C151: Das Makro für die Erstellung der Projektdetails kann bis zu 4.992 Datensätze verarbeiten und ist erweiterbar
C152: Im Tabellenblatt "Kosten" können die Kostenarten für die Darstellung im BWA-Schema frei definiert werden
C153: Es besteht kein Schreibschutz und alle Felder, Formeln und Kommentare sind frei änder- und löschbar
C154: Die dynamischen Tabellen beinhalten nur zwei Beispieldatensätze, sofern sind die umfangreichen Beispieldaten nicht zuvor zu löschen
C155: Die einzelnen Tabellenblätter haben separate, schneller zugängliche Anwendungshilfen zu den jeweiligen Inhalten
C156: Die Datei enthält zusätzlich betriebswirtschaftliche Betrachtungen zur Projektkostenerfassung als Teil des Projektcontrollings
C158: Wenn Sie Interesse an der Premiumversion der Projektkostenerfassung haben, können Sie diese für EUR 8,98 inkl. MwSt erwerben:
C159: 1. | D159: Sie senden eine E-Mail an Service@ControllerSpielwiese.de mit Ihrer Rechnungsadresse und dem Stichwort Projektkostenerfassung
C160: 2. | D160: Wir senden Ihnen die Premiumversion umgehend während unserer Bürozeiten per E-Mail zu
C161: 3. | D161: Sie erhalten Ihre Rechnung inkl. MwSt. per E-Mail zusammen mit Ihrer Datei
C163: Für das Funktionieren des Tools in Ihrer Umgebung sowie evtl. Folgeschäden übernehmen wir keine Haftung
C164: Wir gewähren jedoch einen freiwilligen E-Mail-Support während unserer Bürozeiten
C165: Das Tool wird aus dem Feedback unserer Mitglieder weiterentwickelt, updates sind kostenfrei erhältlich
B168: =CONCATENATE($C$11," ",$D$11) -> 4. Betriebswirtschaftliche Betrachtungen zur Projektkostenerfassung
J226: oben
